[Event "2nd Sharjah Masters 2018"]
[Site "Sharjah"]
[Date "2018.04.18"]
[Round "8"]
[White "Maroroa, Sue"]
[Black "Hejazipour, Mitra"]
[Result "1/2-1/2"]
[ECO "C45"]
[WhiteElo "2102"]
[BlackElo "2304"]
[Annotator "NA"]
[PlyCount "50"]
[EventDate "2018.??.??"]
[EventType "swiss"]
[EventCountry "UAE"]
[SourceTitle "playchess.com"]
[Source "ChessBase"]
[SourceQuality "1"]
[TimeControl "5400+30"]

1. e4 {[%emt 0:00:00]} e5 {[%emt 0:00:39]} 2. Nf3 {[%emt 0:00:00]} Nc6 {[%emt 0:00:08]} 3. d4 {[%emt 0:00:00]} exd4 {[%emt 0:00:12]} 4. Nxd4 {[%emt 0:00:00]} Nf6 {[%emt 0:00:11]} 5. Nxc6 {[%emt 0:00:02]} bxc6 {[%emt 0:00:10]} 6. e5 {[%emt 0:00:05]} Qe7 {[%emt 0:00:21]} 7. Qe2 {[%emt 0:00:05]} Nd5 {[%emt 0:00:20]} 8. c4 {[%emt 0:00:08]} Nb6 {[%emt 0:00:36]} 9. Nc3 {[%emt 0:00:20]} Bb7 {[%emt 0:01:48]} 10. Bd2 {[%emt 0:05:00]} O-O-O {[%emt 0:01:31]} 11. O-O-O {[%emt 0:00:33]} Kb8 {[%emt 0:01:13]} 12. h4 {[%emt 0:02:00]} Re8 {[%emt 0:02:15]} 13. Re1 {[%emt 0:02:46]} Qe6 {[%emt 0:18:22]} 14. Qe4 {[%emt 0:06:24]} g6 {[%emt 0:18:45]} 15. f4 {[%emt 0:06:47]} h5 {[%emt 0:08:07]} 16. Rh3 {[%emt 0:03:42]} Be7 {[%emt 0:03:44]} 17. Qd3 {[%emt 0:07:30]} Ba6 {[%emt 0:12:17]} 18. b3 {[%emt 0:00:17]} Ba3+ {[%emt 0:05:24]} 19. Kc2 {[%emt 0:00:32]} Bb4 {[%emt 0:03:41]} 20. a3 {[%emt 0:05:57]} Bxc3 {[%emt 0:04:18]} 21. Qxc3 {[%emt 0:03:44]} Qf5+ {[%emt 0:01:01]} 22. Bd3 {[%emt 0:02:13]} Qg4 {[%emt 0:00:14]} 23. Be2 {[%emt 0:00:39]} Qf5+ {[%emt 0:00:49]} 24. Bd3 {[%emt 0:15:33]} Qg4 {[%emt 0:00:06]} 25. Be2 {[%emt 0:03:37]} Qf5+ {[%emt 0:00:08]} 1/2-1/2

[Event "2nd Sharjah Masters 2018"]
[Site "Sharjah"]
[Date "2018.04.18"]
[Round "8"]
[White "Al Hosani, Omran"]
[Black "Ashwath, R."]
[Result "1/2-1/2"]
[ECO "A13"]
[WhiteElo "2101"]
[BlackElo "2250"]
[Annotator "NA"]
[PlyCount "110"]
[EventDate "2018.??.??"]
[EventType "swiss"]
[EventCountry "UAE"]
[SourceTitle "playchess.com"]
[Source "ChessBase"]
[SourceQuality "1"]
[TimeControl "5400+30"]

1. c4 {[%emt 0:00:18]} e6 {[%emt 0:00:39]} 2. g3 {[%emt 0:00:07]} d5 {[%emt 0:00:15]} 3. Bg2 {[%emt 0:00:09]} Nf6 {[%emt 0:02:07]} 4. Nf3 {[%emt 0:00:10]} dxc4 {[%emt 0:00:18]} 5. Qa4+ {[%emt 0:00:10]} c6 {[%emt 0:00:43]} 6. Qxc4 {[%emt 0:00:10]} b5 {[%emt 0:00:15]} 7. Qc2 {[%emt 0:00:24]} Bb7 {[%emt 0:00:32]} 8. d4 {[%emt 0:00:29]} Nbd7 {[%emt 0:01:44]} 9. Nc3 {[%emt 0:05:57]} c5 {[%emt 0:13:32]} 10. dxc5 {[%emt 0:03:31]} Bxc5 {[%emt 0:08:11]} 11. O-O {[%emt 0:01:11]} Rc8 {[%emt 0:02:01]} 12. Qd1 {[%emt 0:09:58]} a6 {[%emt 0:02:32]} 13. Bf4 {[%emt 0:01:13]} Qb6 {[%emt 0:09:18]} 14. Ng5 {[%emt 0:12:39]} Bxg2 {[%emt 0:09:52]} 15. Kxg2 {[%emt 0:00:08]} Bd4 {[%emt 0:03:49]} 16. Nge4 {[%emt 0:08:25]} e5 {[%emt 0:03:37]} 17. Be3 {[%emt 0:17:38]} O-O {[%emt 0:13:47]} 18. Qd3 {[%emt 0:12:18]} Bxe3 {[%emt 0:12:45]} 19. fxe3 {[%emt 0:00:42]} b4 {[%emt 0:01:25]} 20. Nxf6+ {[%emt 0:08:57]} Nxf6 {[%emt 0:00:21]} 21. Rxf6 {[%emt 0:03:55]} Qxf6 {[%emt 0:01:12]} 22. Nd5 {[%emt 0:00:12]} Qd6 {[%emt 0:04:31]} 23. Rd1 {[%emt 0:00:56]} Kh8 {[%emt 0:01:08]} 24. e4 {[%emt 0:00:30]} Qc5 {[%emt 0:01:37]} 25. b3 {[%emt 0:05:46]} a5 {[%emt 0:00:43]} 26. Ne3 {[%emt 0:00:24]} Qc3 {[%emt 0:01:03]} 27. Nc4 {[%emt 0:00:23]} a4 {[%emt 0:01:48]} 28. Qxc3 {[%emt 0:00:24]} bxc3 {[%emt 0:00:02]} 29. Rc1 {[%emt 0:00:07]} Rfd8 {[%emt 0:01:26]} 30. Rxc3 {[%emt 0:00:29]} Rd2 {[%emt 0:00:55]} 31. Nxd2 {[%emt 0:02:43]} Rxc3 {[%emt 0:00:01]} 32. bxa4 {[%emt 0:00:02]} Rc2 {[%emt 0:00:40]} 33. Nf3 {[%emt 0:01:21]} Rxe2+ {[%emt 0:00:19]} 34. Kf1 {[%emt 0:00:07]} Rxa2 {[%emt 0:01:46]} 35. Nxe5 {[%emt 0:00:06]} Kg8 {[%emt 0:00:16]} 36. Nf3 {[%emt 0:00:35]} Rxa4 {[%emt 0:00:13]} 37. Nd2 {[%emt 0:00:15]} f6 {[%emt 0:00:19]} 38. Ke2 {[%emt 0:00:04]} Kf7 {[%emt 0:00:03]} 39. Ke3 {[%emt 0:00:08]} Ke6 {[%emt 0:00:13]} 40. Nf3 {[%emt 0:00:15]} Ra3+ {[%emt 0:00:05]} 41. Ke2 {[%emt 0:00:12]} g5 {[%emt 0:00:30]} 42. h3 {[%emt 0:00:19]} Ra2+ {[%emt 0:00:27]} 43. Ke3 {[%emt 0:00:39]} Rg2 {[%emt 0:00:50]} 44. Nd4+ {[%emt 0:00:10]} Ke5 {[%emt 0:00:06]} 45. Nf3+ {[%emt 0:00:12]} Kd6 {[%emt 0:00:14]} 46. g4 {[%emt 0:00:46]} Rg3 {[%emt 0:00:06]} 47. Kf2 {[%emt 0:00:11]} Rxh3 {[%emt 0:00:30]} 48. e5+ {[%emt 0:00:17]} Ke6 {[%emt 0:00:39]} 49. exf6 {[%emt 0:00:06]} Kxf6 {[%emt 0:00:09]} 50. Kg2 {[%emt 0:00:04]} Rxf3 {[%emt 0:00:21]} 51. Kxf3 {[%emt 0:00:03]} Ke5 {[%emt 0:00:01]} 52. Ke3 {[%emt 0:00:09]} h6 {[%emt 0:00:03]} 53. Kf3 {[%emt 0:00:05]} Kd4 {[%emt 0:00:01]} 54. Kg3 {[%emt 0:00:06]} Ke4 {[%emt 0:00:09]} 55. Kh3 {[%emt 0:00:02]} Kf4 {[%emt 0:00:06]} 1/2-1/2

[Event "2nd Sharjah Masters 2018"]
[Site "Sharjah"]
[Date "2018.04.18"]
[Round "8"]
[White "Mohammed Ahmed said Al Amri"]
[Black "Poormosavi, Seyed Kian"]
[Result "1/2-1/2"]
[ECO "B31"]
[WhiteElo "1822"]
[BlackElo "2218"]
[Annotator "NA"]
[PlyCount "214"]
[EventDate "2018.??.??"]
[EventType "swiss"]
[EventCountry "UAE"]
[SourceTitle "playchess.com"]
[Source "ChessBase"]
[SourceQuality "1"]
[TimeControl "5400+30"]

1. e4 {[%emt 0:00:00]} c5 {[%emt 0:00:57]} 2. Nf3 {[%emt 0:00:00]} Nc6 {[%emt 0:00:06]} 3. Bb5 {[%emt 0:00:04]} g6 {[%emt 0:00:13]} 4. O-O {[%emt 0:00:44]} Bg7 {[%emt 0:00:02]} 5. Re1 {[%emt 0:00:46]} Nf6 {[%emt 0:00:06]} 6. c3 {[%emt 0:00:58]} O-O {[%emt 0:01:31]} 7. d4 {[%emt 0:02:22]} cxd4 {[%emt 0:00:49]} 8. cxd4 {[%emt 0:00:18]} d5 {[%emt 0:00:25]} 9. e5 {[%emt 0:00:20]} Ne4 {[%emt 0:00:14]} 10. Nc3 {[%emt 0:02:30]} Nxc3 {[%emt 0:08:45]} 11. bxc3 {[%emt 0:00:13]} Qa5 {[%emt 0:00:05]} 12. Qa4 {[%emt 0:04:16] B31: Sicilian: 2...Nc6 3 Bb5 g6} Qxa4 {[%emt 0:08:30]} 13. Bxa4 {[%emt 0:00:20]} Bd7 {[%emt 0:00:09]} (13... Bf5 14. Ba3 Rfe8 15. c4 Rad8 16. cxd5 Rxd5 17. Bc5 Rc8 18. Bxc6 Rxc6 19. Bxe7 Bh6 {1-0 (66) Heidenfeld,M (2360)-Quinn,M (2377) Dun Laoghaire 2010}) 14. Ba3 {[%emt 0:03:04]} Rfe8 {[%emt 0:02:06]} 15. Rab1 $146 {[%emt 0:03:16]} ({Predecessor:} 15. Bxc6 Bxc6 16. e6 h6 17. Re3 fxe6 18. Rxe6 Kf7 19. Rae1 Bf6 20. h3 Bd7 21. R6e3 Rac8 22. Bb4 Rc6 23. a4 Re6 {½-½ (23) Tomasek,M (2255)-Kopriva,O (2220) Czechia 2004}) 15... b6 {[%emt 0:01:12]} 16. Bb3 {[%emt 0:01:27]} e6 {[%emt 0:01:16]} 17. Nd2 {[%emt 0:11:19]} Rec8 {[%emt 0:00:54]} 18. Bd1 {[%emt 0:05:13]} Na5 {[%emt 0:02:15]} 19. Bb4 {[%emt 0:02:07]} Bh6 {[%emt 0:00:09]} 20. Rb2 $17 {[%emt 0:09:27]} Bxd2 {[%emt 0:01:34]} 21. Rxd2 {[%emt 0:00:01]} Nc4 {[%emt 0:00:00]} 22. Rc2 {[%emt 0:00:04]} a5 {[%emt 0:00:00]} 23. Be7 {[%emt 0:00:03]} Ra7 {[%emt 0:01:08]} 24. Rc1 {[%emt 0:04:38]} Rac7 {[%emt 0:07:55]} 25. Be2 {[%emt 0:02:07]} Nb2 {[%emt 0:05:40]} 26. Ba6 {[%emt 0:02:38]} Ra8 {[%emt 0:12:48]} 27. Bd6 {[%emt 0:00:24]} Rca7 {[%emt 0:02:42]} 28. Ba3 {[%emt 0:00:45]} Rxa6 {[%emt 0:01:50]} 29. Bxb2 {[%emt 0:00:04]} Rc8 {[%emt 0:00:08]} 30. Ba3 {[%emt 0:00:26]} Bb5 {[%emt 0:01:27]} 31. Bd6 {[%emt 0:00:02]} Bc4 {[%emt 0:01:10]} 32. a3 {[%emt 0:00:09]} Rc6 {[%emt 0:01:00]} 33. f4 {[%emt 0:00:44]} Ra8 {[%emt 0:03:52]} 34. Kf2 {[%emt 0:00:04]} Bd3 {[%emt 0:00:33]} 35. Ke3 {[%emt 0:00:24]} Be4 {[%emt 0:01:03]} 36. g3 {[%emt 0:00:08]} f5 {[%emt 0:01:58]} 37. Kd2 {[%emt 0:03:22]} Rac8 {[%emt 0:00:39]} 38. Re3 {[%emt 0:01:49]} Kf7 {[%emt 0:01:05]} 39. Ree1 {[%emt 0:00:05]} h6 {[%emt 0:00:46]} 40. Rg1 {[%emt 0:02:05]} g5 {[%emt 0:01:45]} 41. h3 {[%emt 0:10:23]} Rc4 {[%emt 0:06:01]} 42. Rge1 {[%emt 0:00:16]} Ra4 {[%emt 0:01:28]} 43. Ra1 {[%emt 0:00:35]} Rac4 {[%emt 0:03:31]} 44. Rac1 {[%emt 0:00:03]} Rg8 {[%emt 0:01:13]} 45. Rg1 {[%emt 0:00:05]} Ke8 {[%emt 0:00:49]} 46. fxg5 {[%emt 0:01:44]} hxg5 {[%emt 0:00:28]} 47. h4 {[%emt 0:00:05]} Rh8 {[%emt 0:02:44]} 48. hxg5 {[%emt 0:01:17]} Rh2+ {[%emt 0:01:38]} 49. Ke3 {[%emt 0:00:23]} Kf7 {[%emt 0:00:10]} 50. Rgf1 {[%emt 0:04:16]} Kg6 {[%emt 0:00:52]} 51. Rf2 {[%emt 0:02:57]} Rxf2 {[%emt 0:01:27]} 52. Kxf2 {[%emt 0:00:02]} Kxg5 {[%emt 0:00:07]} 53. Be7+ {[%emt 0:00:57]} Kg4 {[%emt 0:00:55]} 54. Bd8 {[%emt 0:00:18]} Rc8 {[%emt 0:07:28]} 55. Bf6 {[%emt 0:08:05]} Rc7 {[%emt 0:00:30]} 56. Bh4 {[%emt 0:08:46]} b5 {[%emt 0:01:06]} 57. Bd8 {[%emt 0:02:22]} Rc8 {[%emt 0:00:36]} 58. Be7 {[%emt 0:02:16]} Rh8 {[%emt 0:02:46]} 59. Bh4 {[%emt 0:01:20]} f4 {[%emt 0:00:56]} 60. Rg1 {[%emt 0:00:00]} Rc8 {[%emt 0:01:04]} 61. Be7 {[%emt 0:00:10]} Rxc3 {[%emt 0:00:45]} 62. gxf4+ {[%emt 0:00:07]} Kxf4 {[%emt 0:00:14]} 63. Bg5+ {[%emt 0:00:49]} Kf5 {[%emt 0:00:12]} 64. Bd2 {[%emt 0:00:02]} Rf3+ {[%emt 0:03:08]} 65. Ke2 {[%emt 0:00:01]} Rf4 {[%emt 0:00:11]} 66. Bxf4 {[%emt 0:00:37]} Kxf4 {[%emt 0:00:01]} 67. Kd2 {[%emt 0:00:09]} Bf5 {[%emt 0:02:09]} 68. Kc3 {[%emt 0:00:41]} Ke3 {[%emt 0:00:05]} 69. Re1+ {[%emt 0:00:24]} Kf2 {[%emt 0:00:48]} 70. Rh1 {[%emt 0:00:12]} Ke3 {[%emt 0:00:22]} 71. Rf1 {[%emt 0:00:49]} Bg4 {[%emt 0:01:33]} 72. Rh1 {[%emt 0:01:52]} Bf5 {[%emt 0:00:17]} 73. Re1+ {[%emt 0:00:14]} Kf2 {[%emt 0:00:03]} 74. Kd2 {[%emt 0:00:02]} Kf3 {[%emt 0:01:45]} 75. Rf1+ {[%emt 0:00:14]} Ke4 {[%emt 0:00:04]} 76. Kc3 {[%emt 0:00:04]} Bg4 {[%emt 0:01:03]} 77. Rb1 {[%emt 0:00:56]} Be2 {[%emt 0:00:13]} 78. Re1 {[%emt 0:00:01]} Ke3 {[%emt 0:00:50]} 79. Rb1 {[%emt 0:00:38]} Ke4 {[%emt 0:00:16]} 80. Re1 {[%emt 0:01:04]} Ke3 {[%emt 0:00:00]} 81. Rb1 {[%emt 0:00:16]} Ke4 {[%emt 0:01:07]} 82. Re1 {[%emt 0:01:27]} Ke3 {[%emt 0:00:01]} 83. Rb1 {[%emt 0:00:10]} Bc4 {[%emt 0:00:40]} 84. Re1+ {[%emt 0:00:27]} Kf2 {[%emt 0:01:00]} 85. Kd2 {[%emt 0:00:02]} b4 {[%emt 0:00:49]} 86. axb4 {[%emt 0:00:50]} axb4 {[%emt 0:00:01]} 87. Rb1 {[%emt 0:00:01]} b3 {[%emt 0:00:02]} 88. Kc3 {[%emt 0:00:01]} Ke3 {[%emt 0:01:01]} 89. Rh1 {[%emt 0:00:28]} Ke4 {[%emt 0:01:01]} 90. Rh6 {[%emt 0:00:24]} b2 {[%emt 0:00:35]} 91. Rh4+ {[%emt 0:00:01]} Ke3 {[%emt 0:00:00]} 92. Kxb2 {[%emt 0:00:59]} Kd3 {[%emt 0:00:15]} 93. Rh6 {[%emt 0:01:36]} Kxd4 {[%emt 0:00:44]} 94. Rxe6 {[%emt 0:00:06]} Bb5 {[%emt 0:00:37]} 95. Rb6 {[%emt 0:00:06]} Kc5 {[%emt 0:00:09]} 96. Rb8 {[%emt 0:02:01]} Bd7 {[%emt 0:01:04]} 97. Rd8 {[%emt 0:00:07]} Bf5 {[%emt 0:00:33]} 98. Kc3 {[%emt 0:00:02]} Be6 {[%emt 0:00:32]} 99. Kd3 {[%emt 0:00:25]} Bg4 {[%emt 0:00:31]} 100. Ke3 {[%emt 0:00:03]} Bh3 {[%emt 0:00:20]} 101. Rh8 {[%emt 0:00:42]} Be6 {[%emt 0:00:40]} 102. Kf4 {[%emt 0:00:03]} d4 {[%emt 0:00:09]} 103. Kg5 {[%emt 0:00:50]} d3 {[%emt 0:00:17]} 104. Kf6 {[%emt 0:00:05]} d2 {[%emt 0:00:30]} 105. Rh1 {[%emt 0:00:14]} Bg4 {[%emt 0:00:52]} 106. Rg1 {[%emt 0:01:14]} d1=Q {[%emt 0:00:15]} 107. Rxd1 {[%emt 0:00:03]} Bxd1 {[%emt 0:00:01]} 1/2-1/2

[Event "2nd Sharjah Masters 2018"]
[Site "Sharjah"]
[Date "2018.04.19"]
[Round "9"]
[White "Pranav Vijay"]
[Black "Maroroa, Sue"]
[Result "1-0"]
[ECO "A45"]
[WhiteElo "2265"]
[BlackElo "2102"]
[Annotator "NA RC"]
[PlyCount "129"]
[EventDate "2018.??.??"]
[EventType "swiss"]
[EventCountry "UAE"]
[SourceTitle "playchess.com"]
[Source "ChessBase"]
[SourceQuality "1"]
[TimeControl "5400+30"]

1. d4 {[%emt 0:00:00]} Nf6 {[%emt 0:00:04]} 2. Nc3 {[%emt 0:00:00]} d5 {[%emt 0:00:06]} 3. Bf4 {[%emt 0:00:00]} e6 {[%emt 0:02:05]} 4. Nb5 {[%emt 0:00:26] D00: 1 d4 d5: Unusual lines} Na6 {[%emt 0:00:20]} 5. e3 {[%emt 0:00:21]} Be7 {[%emt 0:03:03]} 6. Nf3 {[%emt 0:01:24]} Nh5 $146 {[%emt 0:01:15]} ({Predecessor:} 6... O-O 7. a3 c5 8. c3 Bd7 9. a4 Nh5 10. Bd6 Bxd6 11. Nxd6 Qb6 {½-½ (38) Jobava,B (2687)-Iturrizaga Bonelli,E (2662) Linares 2017}) 7. Be5 {[%emt 0:01:23]} Nf6 {[%emt 0:01:07]} 8. Nc3 {[%emt 0:01:19]} Nb8 {[%emt 0:01:11]} 9. Nb5 {[%emt 0:04:23]} Na6 {[%emt 0:00:19]} 10. c4 {[%emt 0:00:13]} Bb4+ {[%emt 0:01:45]} 11. Nc3 {[%emt 0:00:08]} O-O {[%emt 0:03:41]} 12. a3 {[%emt 0:00:27]} Bxc3+ {[%emt 0:04:57]} 13. bxc3 {[%emt 0:00:18]} Nb8 {[%emt 0:03:46]} 14. Bd3 {[%emt 0:01:22]} dxc4 {[%emt 0:01:41]} 15. Bxc4 {[%emt 0:00:22]} Nc6 {[%emt 0:00:15]} 16. O-O {[%emt 0:00:44]} b6 {[%emt 0:04:40]} 17. Bd3 {[%emt 0:03:36]} Bb7 {[%emt 0:03:44]} 18. Bxf6 {[%emt 0:00:49]} Qxf6 {[%emt 0:01:33]} 19. Be4 {[%emt 0:00:17]} Na5 {[%emt 0:01:52]} 20. Bxb7 {[%emt 0:00:56]} Nxb7 {[%emt 0:01:04]} 21. Ne5 {[%emt 0:00:08]} Rfd8 {[%emt 0:02:07]} 22. f4 {[%emt 0:00:35]} Nd6 {[%emt 0:00:24]} 23. Qf3 {[%emt 0:01:16]} Qh6 {[%emt 0:04:32]} 24. Qc6 {[%emt 0:05:31]} (24. a4 $16) 24... f6 {[%emt 0:02:13]} 25. Nf3 {[%emt 0:02:42]} Rac8 {[%emt 0:01:20]} 26. Rae1 {[%emt 0:02:09]} Qg6 {[%emt 0:00:31]} 27. Nd2 {[%emt 0:01:41]} Qe8 {[%emt 0:03:25]} 28. Qf3 {[%emt 0:00:39]} c5 {[%emt 0:00:10]} 29. Qh3 {[%emt 0:12:23]} Qd7 {[%emt 0:10:24]} 30. a4 {[%emt 0:02:17]} e5 {[%emt 0:01:12]} 31. Qxd7 {[%emt 0:01:28]} Rxd7 {[%emt 0:00:09]} 32. fxe5 {[%emt 0:00:27]} fxe5 {[%emt 0:00:43]} 33. dxe5 {[%emt 0:00:01]} Nf7 $14 {[%emt 0:01:38]} 34. e6 {[%emt 0:01:01]} Rxd2 {[%emt 0:00:06]} 35. Rxf7 {[%emt 0:00:09]} Rd6 {[%emt 0:00:39]} 36. Re7 {[%emt 0:01:58]} Kf8 {[%emt 0:01:27]} 37. Rxa7 {[%emt 0:00:35]} Rxe6 {[%emt 0:00:04]} 38. Rf1+ {[%emt 0:00:10]} Kg8 {[%emt 0:01:47]} 39. Rff7 {[%emt 0:00:09]} Rg6 {[%emt 0:00:55]} 40. g3 h5 {[%emt 0:01:28]} 41. Kf2 {[%emt 0:06:14]} Rd8 {[%emt 0:02:23]} 42. Ke2 {[%emt 0:02:17]} h4 {[%emt 0:01:05]} 43. gxh4 {[%emt 0:02:53]} Rg2+ {[%emt 0:14:11]} 44. Rf2 {[%emt 0:00:43]} Rd2+ {[%emt 0:05:27]} 45. Kxd2 {[%emt 0:00:08]} Rxf2+ {[%emt 0:00:03]} 46. Kd3 {[%emt 0:00:09]} Rxh2 {[%emt 0:00:05]} 47. Kc4 {[%emt 0:00:45]} Rxh4+ {[%emt 0:00:18]} 48. Kb5 {[%emt 0:00:01]} g5 {[%emt 0:10:25]} 49. Rb7 {[%emt 0:03:19]} Rh7 {[%emt 0:01:16]} 50. Rb8+ {[%emt 0:05:15]} Kg7 {[%emt 0:00:01]} 51. Rxb6 {[%emt 0:00:52]} g4 {[%emt 0:00:40]} 52. Kxc5 {[%emt 0:00:13]} Rh5+ {[%emt 0:00:25]} 53. Kd4 {[%emt 0:01:05]} g3 {[%emt 0:00:30]} 54. Rb1 {[%emt 0:00:13]} Kf6 {[%emt 0:00:59]} 55. Rg1 {[%emt 0:00:32]} Rg5 {[%emt 0:00:21]} 56. e4 {[%emt 0:00:28]} Ke6 {[%emt 0:01:00]} 57. a5 {[%emt 0:01:22]} Kd6 {[%emt 0:02:10]} 58. a6 {[%emt 0:00:23]} Kc7 {[%emt 0:00:07]} 59. a7 {[%emt 0:00:31]} Kb7 {[%emt 0:00:06]} 60. Ke3 {[%emt 0:00:13]} Kxa7 {[%emt 0:00:31]} 61. Kf4 {[%emt 0:00:27]} Rc5 {[%emt 0:00:36]} 62. Rxg3 {[%emt 0:00:11]} Kb6 {[%emt 0:00:02]} 63. e5 {[%emt 0:00:10]} Rd5 {[%emt 0:00:22]} 64. Ke4 {[%emt 0:00:33]} Rd1 {[%emt 0:00:14]} 65. Rd3 {[%emt 0:00:14]} 1-0

[Event "2nd Sharjah Masters 2018"]
[Site "Sharjah"]
[Date "2018.04.19"]
[Round "9"]
[White "Raahul V S"]
[Black "Balasubramaniam H"]
[Result "1/2-1/2"]
[ECO "A30"]
[WhiteElo "2258"]
[BlackElo "2060"]
[Annotator "NA RC"]
[PlyCount "78"]
[EventDate "2018.??.??"]
[EventType "swiss"]
[EventCountry "UAE"]
[SourceTitle "playchess.com"]
[Source "ChessBase"]
[SourceQuality "1"]
[TimeControl "5400+30"]

1. c4 {[%emt 0:00:00]} c5 {[%emt 0:00:29]} 2. Nf3 {[%emt 0:00:00]} b6 {[%emt 0:00:07]} 3. d4 {[%emt 0:00:00]} cxd4 {[%emt 0:00:06]} 4. Nxd4 {[%emt 0:00:00]} Bb7 {[%emt 0:00:04]} 5. Nc3 {[%emt 0:00:37]} Nf6 {[%emt 0:00:04]} 6. f3 {[%emt 0:00:27]} e6 {[%emt 0:01:06]} 7. e4 {[%emt 0:00:21]} d6 {[%emt 0:00:07]} 8. Be2 {[%emt 0:00:37]} a6 {[%emt 0:00:39]} 9. O-O {[%emt 0:00:25]} Be7 {[%emt 0:00:17]} 10. Be3 {[%emt 0:02:13]} O-O {[%emt 0:00:07]} 11. Qd2 {[%emt 0:01:15]} Nbd7 {[%emt 0:00:26]} 12. Rac1 {[%emt 0:01:02]} Qc7 {[%emt 0:01:28]} 13. Rfd1 {[%emt 0:03:31]} Rac8 {[%emt 0:00:26]} 14. b4 {[%emt 0:04:17]} Qb8 {[%emt 0:03:18] A31: Symmetrical English: 2 Nf3 Nf6 3 d4} 15. Nb3 {[%emt 0:00:38]} (15. a3 Rfe8 16. Nb3 Bc6 17. Kh1 h6 18. Bf1 Ne5 19. Qf2 Bd7 20. Nb1 Ba4 21. N1d2 b5 22. c5 dxc5 23. Bxc5 Bxc5 24. Rxc5 {0-1 (62) Negi,P (2664)-Hou,Y (2683) Saint Louis 2015}) 15... Bd8 {[%emt 0:04:21]} 16. Bf4 {[%emt 0:00:22]} Ne5 {[%emt 0:00:19]} 17. Qe3 $146 {[%emt 0:14:22]} ({Predecessor:} 17. Bxe5 dxe5 18. a3 Bc6 19. Qd6 Qxd6 20. Rxd6 Be7 21. Rdd1 Ra8 22. Ra1 {1-0 (43) Csirik,A (2225)-Luch,M (2383) Zalakaros 2008}) 17... Nh5 {[%emt 0:07:03]} 18. Bxe5 {[%emt 0:00:30]} dxe5 {[%emt 0:00:02]} 19. g3 {[%emt 0:00:11]} h6 {[%emt 0:11:18]} 20. Rxd8 {[%emt 0:01:43]} Rfxd8 {[%emt 0:05:52]} 21. Qxb6 {[%emt 0:00:46]} Rd6 {[%emt 0:07:02]} 22. Qf2 {[%emt 0:03:43]} Nf6 {[%emt 0:00:47]} 23. c5 $16 {[%emt 0:00:18]} Rdd8 {[%emt 0:00:43]} 24. Na4 {[%emt 0:03:35]} Nd7 {[%emt 0:02:42]} 25. Nb2 {[%emt 0:01:19]} Bc6 {[%emt 0:03:11]} 26. Bxa6 {[%emt 0:03:08]} Qxb4 {[%emt 0:01:29]} 27. Nd3 {[%emt 0:03:19]} Qa3 {[%emt 0:03:13]} 28. Bxc8 {[%emt 0:00:08]} Rxc8 {[%emt 0:00:01]} 29. Qd2 {[%emt 0:04:07]} Qa7 {[%emt 0:01:35]} 30. Qa5 {[%emt 0:01:00]} Qb7 {[%emt 0:00:29]} 31. Qc3 {[%emt 0:02:01]} Qa7 {[%emt 0:05:55]} 32. Nxe5 {[%emt 0:11:26]} Nxe5 {[%emt 0:00:04]} 33. Qxe5 {[%emt 0:00:03]} Qxa2 {[%emt 0:00:04]} 34. Qc3 {[%emt 0:00:02]} Rb8 {[%emt 0:05:41]} 35. Nd4 {[%emt 0:03:16]} Rb2 {[%emt 0:00:09]} 36. Rc2 {[%emt 0:00:10]} Qa1+ {[%emt 0:01:03]} 37. Rc1 {[%emt 0:00:02]} Qa2 {[%emt 0:00:05]} 38. Nc2 {[%emt 0:00:49]} Rb3 {[%emt 0:04:57]} 39. Qd4 {[%emt 0:06:56]} Rb1 {[%emt 0:02:15]} 1/2-1/2

[Event "2nd Sharjah Masters 2018"]
[Site "Sharjah"]
[Date "2018.04.19"]
[Round "9"]
[White "Aradhya, Garg"]
[Black "Mohammed Ahmed said Al Amri"]
[Result "1/2-1/2"]
[ECO "A70"]
[WhiteElo "2218"]
[BlackElo "1822"]
[Annotator "NA"]
[PlyCount "95"]
[EventDate "2018.??.??"]
[EventType "swiss"]
[EventCountry "UAE"]
[SourceTitle "playchess.com"]
[Source "ChessBase"]
[SourceQuality "1"]
[TimeControl "5400+30"]

1. d4 {[%emt 0:01:46]} Nf6 {[%emt 0:00:09]} 2. c4 {[%emt 0:00:03]} e6 {[%emt 0:00:11]} 3. Nc3 {[%emt 0:04:14]} c5 {[%emt 0:00:21]} 4. d5 {[%emt 0:01:15]} exd5 {[%emt 0:01:10]} 5. cxd5 {[%emt 0:00:07]} d6 {[%emt 0:00:05]} 6. e4 {[%emt 0:00:05]} g6 {[%emt 0:00:00]} 7. Nf3 {[%emt 0:00:04]} Bg7 {[%emt 0:04:27]} 8. h3 {[%emt 0:00:37]} O-O {[%emt 0:00:10]} 9. Bd3 {[%emt 0:00:13]} b5 {[%emt 0:00:51]} 10. Nxb5 {[%emt 0:00:32]} Nxe4 {[%emt 0:01:07]} 11. Bxe4 {[%emt 0:00:46]} Re8 {[%emt 0:00:20]} 12. Ng5 {[%emt 0:01:33]} f5 {[%emt 0:01:36]} 13. O-O {[%emt 0:10:19] A70: Modern Benoni: 6 e4 g6 7 Nf3} fxe4 {[%emt 0:00:04]} 14. Ne6 {[%emt 0:00:11]} Bxe6 {[%emt 0:02:37]} 15. dxe6 {[%emt 0:00:02]} d5 {[%emt 0:00:32]} (15... Na6 16. Nxd6 Rxe6 17. Bf4 Qd7 18. Qb3 Kh8 19. Rad1 Bd4 20. Nb5 Rf8 {1-0 (30) Ivanov,J (2465)-Topak,E (2308) Ankara 2011}) 16. e7 {[%emt 0:19:52]} Rxe7 {[%emt 0:08:53]} 17. Bg5 {[%emt 0:00:18]} Nc6 {[%emt 0:00:08] [#]} 18. Rc1 $1 $146 {[%emt 0:02:46]} ({Predecessor:} 18. Bxe7 Nxe7 19. Qc2 Qb6 20. Nc3 Rf8 {1-0 (38) Nurgali,N (2006)-Timirev,S (1772) St Petersburg 2017}) 18... c4 {[%emt 0:04:27]} 19. b3 {[%emt 0:08:56]} a6 {[%emt 0:01:07]} 20. Nc3 {[%emt 0:08:40]} d4 {[%emt 0:01:59]} 21. Nxe4 {[%emt 0:00:25]} c3 {[%emt 0:00:00]} 22. Re1 {[%emt 0:09:06]} Qc7 {[%emt 0:01:46]} 23. Bxe7 {[%emt 0:01:22]} Nxe7 {[%emt 0:00:01]} 24. Nxc3 {[%emt 0:01:48]} dxc3 $18 {[%emt 0:10:01] [#]} 25. Rxe7 $1 {[%emt 0:00:10]} Qc6 {[%emt 0:01:31]} 26. Rxg7+ {[%emt 0:06:54]} Kxg7 {[%emt 0:00:17]} 27. Qd4+ {[%emt 0:00:02]} Kg8 {[%emt 0:01:16]} 28. Rxc3 {[%emt 0:01:09]} Qe6 {[%emt 0:01:05]} 29. Qc4 {[%emt 0:00:14]} Qxc4 {[%emt 0:00:26]} 30. Rxc4 {[%emt 0:03:09]} Kg7 {[%emt 0:00:34]} 31. Rc7+ {[%emt 0:00:46]} Kg8 {[%emt 0:00:25]} 32. b4 {[%emt 0:01:15]} Rd8 {[%emt 0:00:15]} 33. Ra7 {[%emt 0:00:07]} Rd1+ {[%emt 0:00:05]} 34. Kh2 {[%emt 0:00:01]} Rd6 {[%emt 0:00:43]} 35. a4 {[%emt 0:00:54]} h5 {[%emt 0:00:09]} 36. a5 {[%emt 0:00:39]} Kf8 {[%emt 0:01:33]} 37. Rb7 {[%emt 0:00:11]} Ke8 {[%emt 0:00:08]} 38. Rb6 {[%emt 0:01:13]} Rxb6 {[%emt 0:01:26]} 39. axb6 Kd7 40. g4 {[%emt 0:00:19]} Kc6 {[%emt 0:00:03]} 41. gxh5 {[%emt 0:00:16]} gxh5 {[%emt 0:00:03]} 42. f4 {[%emt 0:00:17]} Kxb6 {[%emt 0:00:01]} 43. f5 {[%emt 0:00:09]} Kc6 {[%emt 0:00:58]} 44. Kg3 {[%emt 0:00:14]} Kd5 {[%emt 0:00:02]} 45. Kf4 {[%emt 0:00:09]} Kd6 {[%emt 0:00:18]} 46. h4 {[%emt 0:00:06]} Kd5 {[%emt 0:00:05]} 47. Kg5 {[%emt 0:00:06]} Ke5 {[%emt 0:00:02]} 48. f6 {[%emt 0:00:04]} 1/2-1/2